fUST/lending_fUST_20250910
["ID","MTS","AMOUNT","RATE_DAILY","PERIOD"]
[384495281,1757443846629,-480.0,0.00014246,2]
[384495283,1757443846639,-1401.77,0.00014246,2]
[384495285,1757443846649,-480.0,0.00014246,2]
[384495287,1757443846658,-730.81,0.00014246,2]
[384495289,1757443846667,-480.0,0.00014246,2]
[384495291,1757443846677,-500.0,0.00014246,2]
[384495292,1757443846687,-1086.25,0.00014246,2]
[384495294,1757443846696,-1319.73,0.00014246,2]
[384495296,1757443846705,-852.95,0.00014246,2]
[384495298,1757443846714,-480.0,0.00014246,2]
[384495300,1757443846723,-480.0,0.00014246,2]
[384495302,1757443846732,-480.0,0.00014246,2]
[384495304,1757443846742,-2181.14,0.00014246,2]
[384495307,1757443846752,-480.0,0.00014246,2]
[384495310,1757443846761,-527.53,0.00014246,2]
[384495311,1757443846770,-566.3,0.00014246,2]
[384495312,1757443846779,-687.81,0.00014246,2]
[384495313,1757443846788,-480.0,0.00014246,2]
[384495314,1757443846798,-480.0,0.00014246,2]
[384495315,1757443846807,-151.0,0.00014246,2]
[384495316,1757443846816,-609.96,0.00014246,2]
[384495317,1757443846825,-151.0,0.00014246,2]
[384495318,1757443846834,-151.0,0.00014246,2]
[384495319,1757443846843,-866.26,0.00014246,2]
[384495320,1757443846852,-480.0,0.00014246,2]
[384495321,1757443846861,-973.44,0.00014246,2]
[384495322,1757443846871,-480.0,0.00014246,2]
[384495323,1757443846880,-845.36,0.00014246,2]
[384495324,1757443846889,-1328.14,0.00014246,2]
[384495325,1757443846898,-480.0,0.00014246,2]
[384495326,1757443846908,-902.77,0.00014246,2]
[384495327,1757443846917,-480.0,0.00014246,2]
[384495328,1757443846926,-1645.72,0.00014246,2]
[384495329,1757443846935,-480.0,0.00014246,2]
[384495330,1757443846945,-265.51123307,0.00014246,2]
[384495331,1757443846954,-2137.86,0.00014246,2]
[384495332,1757443846964,-480.0,0.00014246,2]
[384495333,1757443846973,-608.48,0.00014246,2]
[384495334,1757443846982,-649.0,0.00014246,2]
[384495335,1757443846991,-500.0,0.00014246,2]
[384495336,1757443847001,-998.72,0.00014246,2]
[384495337,1757443847009,-480.0,0.00014246,2]
[384495338,1757443847019,-480.0,0.00014246,2]
[384495339,1757443847028,-2890.01,0.00014246,2]
[384495340,1757443847038,-669.27,0.00014246,2]
[384495341,1757443847047,-480.0,0.00014246,2]
[384495342,1757443847056,-316.76195079,0.00014246,2]
[384495343,1757443847065,-550.06,0.00014246,2]
[384495344,1757443847074,-9288.65,0.00014246,2]
[384495345,1757443847083,-751.05,0.00014246,2]
[384495346,1757443847092,-547.17,0.00014246,2]
[384495347,1757443847101,-480.0,0.00014246,2]
[384495348,1757443847110,-1112.45,0.00014246,2]
[384495349,1757443847119,-1235.2,0.00014246,2]
[384495350,1757443847128,-1043.0,0.00014246,2]
[384495352,1757443847138,-875.02,0.00014246,2]
[384495354,1757443847147,-4822.73,0.00014246,2]
[384495356,1757443847156,-3761.1,0.00014246,2]
[384495358,1757443847166,-1442.08,0.00014246,2]
[384495360,1757443847175,-4997.95,0.00014246,2]
[384495362,1757443847184,-480.0,0.00014246,2]
[384495364,1757443847193,-560.13,0.00014246,2]
[384495366,1757443847202,-1017.88,0.00014246,2]
[384495368,1757443847212,-480.0,0.00014246,2]
[384495370,1757443847220,-480.0,0.00014246,2]
[384495372,1757443847230,-480.0,0.00014246,2]
[384495374,1757443847239,-748.55,0.00014246,2]
[384495376,1757443847248,-168.0,0.00014255,2]
[384495378,1757443847257,-400.0,0.00014278,2]
[384495380,1757443847267,-800.0,0.00014324,2]
[384495382,1757443847276,-151.0,0.000144,2]
[384495384,1757443847285,-474.01,0.0001442,2]
[384495386,1757443847294,-3175.5195782,0.00014437,2]
[384495388,1757443847304,-9440.7487083,0.000145,2]
[384495390,1757443847314,-2000.0,0.000145,2]
[384495392,1757443847323,-2000.0,0.000145,2]
[384495394,1757443847333,-151.0,0.000145,2]
[384495396,1757443847342,-151.0,0.000145,2]
[384495398,1757443847351,-151.0,0.000145,2]
[384495400,1757443847360,-151.0,0.000145,2]
[384495402,1757443847370,-168.0,0.00014506,2]
[384495404,1757443847379,-212.19506388,0.0001452,2]
[384495406,1757443847388,-500.0,0.0001452,2]
[384495408,1757443847397,-649.0,0.0001452,2]
[384495410,1757443847406,-500.0,0.0001452,2]
[384495412,1757443847415,-480.0,0.0001452,2]
[384495414,1757443847425,-480.0,0.0001452,2]
[384495416,1757443847434,-480.0,0.0001452,2]
[384495418,1757443847443,-614.04,0.0001452,2]
[384495420,1757443847452,-509.24,0.0001452,2]
[384495422,1757443847466,-480.0,0.0001452,2]
[384495424,1757443847475,-480.0,0.0001452,2]
[384495426,1757443847484,-480.0,0.0001452,2]
[384495428,1757443847493,-622.69,0.0001452,2]
[384495430,1757443847503,-480.0,0.0001452,2]
[384495432,1757443847512,-480.0,0.0001452,2]
[384495434,1757443847521,-1250.18,0.0001452,2]
[384495436,1757443847530,-553.77,0.0001452,2]
[384495438,1757443847540,-546.45,0.0001452,2]
[384495440,1757443847550,-761.81,0.0001452,2]
[384495442,1757443847559,-480.0,0.0001452,2]
[384495444,1757443847568,-784.25,0.0001452,2]
[384495446,1757443847577,-807.04,0.0001452,2]
[384495448,1757443847586,-554.2,0.0001452,2]
[384495450,1757443847596,-480.0,0.0001452,2]
[384495452,1757443847606,-1959.84,0.0001452,2]
[384495454,1757443847615,-480.0,0.0001452,2]
[384495456,1757443847624,-480.0,0.0001452,2]
[384495457,1757443847633,-480.0,0.0001452,2]
[384495459,1757443847642,-480.0,0.0001452,2]
[384495461,1757443847652,-533.0,0.0001452,2]
[384495463,1757443847661,-650.96,0.0001452,2]
[384495465,1757443847671,-480.0,0.0001452,2]
[384495467,1757443847681,-480.0,0.0001452,2]
[384495469,1757443847691,-557.28,0.0001452,2]
[384495471,1757443847700,-676.39,0.0001452,2]
[384495487,1757443847840,-387.81511295,0.0001452,2]
[384495489,1757443847851,-480.0,0.0001452,2]
[384495491,1757443847861,-480.0,0.0001452,2]
[384495494,1757443847870,-677.0,0.0001452,2]
[384495495,1757443847879,-480.0,0.0001452,2]
[384495497,1757443847891,-480.0,0.0001452,2]
[384495500,1757443847900,-923.74,0.0001452,2]
[384495502,1757443847910,-480.0,0.0001452,2]
[384495504,1757443847919,-885.52,0.0001452,2]
[384495506,1757443847929,-513.30262906,0.0001452,2]
[384495508,1757443847938,-3603.85,0.0001452,2]
[384495510,1757443847947,-538.06,0.0001452,2]
[384495512,1757443847957,-480.0,0.0001452,2]
[384495513,1757443847967,-795.7,0.0001452,2]
[384495515,1757443847976,-480.0,0.0001452,2]
[384495517,1757443847985,-480.0,0.0001452,2]
[384495519,1757443847995,-480.0,0.0001452,2]
[384495521,1757443848005,-480.0,0.0001452,2]
[384495523,1757443848015,-480.0,0.0001452,2]
[384495525,1757443848024,-480.0,0.0001452,2]
[384495527,1757443848034,-657.66,0.0001452,2]
[384495529,1757443848043,-508.66,0.0001452,2]
[384495531,1757443848052,-480.0,0.0001452,2]
[384495533,1757443848061,-1874.63,0.0001452,2]
[384495535,1757443848070,-28219.64,0.0001452,2]
[384495537,1757443848080,-791.99,0.0001452,2]
[384495539,1757443848089,-480.0,0.0001452,2]
[384495541,1757443848099,-480.0,0.0001452,2]
[384495543,1757443848108,-3051.78,0.0001452,2]
[384495545,1757443848117,-1084.68,0.0001452,2]
[384495547,1757443848127,-480.0,0.0001452,2]
[384495549,1757443848136,-2536.77,0.0001452,2]
[384495551,1757443848145,-3224.84,0.0001452,2]
[384495552,1757443848154,-614.55,0.0001452,2]
[384495553,1757443848163,-751.89,0.0001452,2]
[384495554,1757443848172,-642.55,0.0001452,2]
[384495555,1757443848181,-1914.12,0.0001452,2]
[384495556,1757443848190,-803.47,0.0001452,2]
[384495557,1757443848199,-1401.77,0.0001452,2]
[384495558,1757443848207,-480.0,0.0001452,2]
[384495559,1757443848217,-730.81,0.0001452,2]
[384495560,1757443848226,-480.0,0.0001452,2]
[384495561,1757443848235,-1086.25,0.0001452,2]
[384495562,1757443848244,-1319.73,0.0001452,2]
[384495563,1757443848253,-852.95,0.0001452,2]
[384495564,1757443848263,-480.0,0.0001452,2]
[384495565,1757443848272,-480.0,0.0001452,2]
[384495566,1757443848282,-2181.14,0.0001452,2]
[384495567,1757443848291,-480.0,0.0001452,2]
[384495568,1757443848301,-527.53,0.0001452,2]
[384495569,1757443848310,-566.3,0.0001452,2]
[384495570,1757443848320,-687.81,0.0001452,2]
[384495571,1757443848330,-480.0,0.0001452,2]
[384495572,1757443848339,-480.0,0.0001452,2]
[384495573,1757443848349,-609.96,0.0001452,2]
[384495574,1757443848359,-866.26,0.0001452,2]
[384495575,1757443848368,-480.0,0.0001452,2]
[384495577,1757443848377,-973.44,0.0001452,2]
[384495579,1757443848387,-480.0,0.0001452,2]
[384495581,1757443848396,-845.36,0.0001452,2]
[384495583,1757443848406,-1328.14,0.0001452,2]
[384495585,1757443848415,-480.0,0.0001452,2]
[384495587,1757443848424,-902.77,0.0001452,2]
[384495589,1757443848433,-480.0,0.0001452,2]
[384495591,1757443848443,-1645.72,0.0001452,2]
[384495593,1757443848454,-480.0,0.0001452,2]
[384495595,1757443848468,-2137.86,0.0001452,2]
[384495597,1757443848478,-480.0,0.0001452,2]
[384495599,1757443848487,-608.48,0.0001452,2]
[384495601,1757443848497,-998.72,0.0001452,2]
[384495603,1757443848506,-312.41177012,0.0001452,2]
[384495605,1757443848516,-480.0,0.0001452,2]
[384495607,1757443848525,-2890.01,0.0001452,2]
[384495609,1757443848536,-669.27,0.0001452,2]
[384495611,1757443848546,-480.0,0.0001452,2]
[384495613,1757443848556,-550.06,0.0001452,2]
[384495615,1757443848566,-9288.65,0.0001452,2]
[384495617,1757443848575,-751.05,0.0001452,2]
[384495619,1757443848584,-480.0,0.0001452,2]
[384495621,1757443848594,-547.17,0.0001452,2]
[384495623,1757443848603,-1235.2,0.0001452,2]
[384495625,1757443848612,-1043.0,0.0001452,2]
[384495627,1757443848621,-875.02,0.0001452,2]
[384495629,1757443848631,-3761.1,0.0001452,2]
[384495631,1757443848641,-4822.73,0.0001452,2]
[384495633,1757443848651,-1442.08,0.0001452,2]
[384495635,1757443848660,-4997.95,0.0001452,2]
[384495637,1757443848669,-480.0,0.0001452,2]
[384495639,1757443848678,-560.13,0.0001452,2]
[384495641,1757443848688,-1017.88,0.0001452,2]
[384495643,1757443848697,-480.0,0.0001452,2]
[384495645,1757443848707,-480.0,0.0001452,2]
[384495647,1757443848716,-480.0,0.0001452,2]
[384495649,1757443848726,-748.55,0.0001452,2]
[384495651,1757443848736,-1000.0,0.00014521,2]
[384495653,1757443848745,-1000.0,0.00014521,2]
[384495655,1757443848755,-509.81214371,0.00014521,2]
[384495659,1757443848779,-490.18785629,0.00014521,2]
[384495661,1757443848789,-500.0,0.00014521,2]
[384495663,1757443848798,-1000.0,0.00014521,2]
[384495665,1757443848807,-1000.0,0.00014521,2]
[384495667,1757443848817,-1000.0,0.00014521,2]
[384495669,1757443848826,-168.0,0.00014558,2]
[384495670,1757443848836,-151.0,0.000146,2]
[384495671,1757443848846,-160.0,0.0001465,3]
[384495673,1757443848855,-194.0,0.00014684,2]
[384495676,1757443848866,-151.0,0.000147,2]
[384495677,1757443848875,-424.0,0.0001474,2]
[384495680,1757443848885,-168.0,0.00014761,2]
[384495682,1757443848895,-168.0,0.00014769,2]
[384495684,1757443848904,-500.0,0.00014794,2]
[384495686,1757443848913,-649.0,0.00014794,2]
[384495687,1757443848923,-500.0,0.00014794,2]
[384495690,1757443848932,-480.0,0.00014794,2]
[384495692,1757443848942,-480.0,0.00014794,2]
[384495694,1757443848952,-480.0,0.00014794,2]
[384495696,1757443848961,-614.04,0.00014794,2]
[384495698,1757443848971,-509.24,0.00014794,2]
[384495700,1757443848980,-480.0,0.00014794,2]
[384495702,1757443848990,-480.0,0.00014794,2]
[384495704,1757443848999,-480.0,0.00014794,2]
[384495706,1757443849009,-622.69,0.00014794,2]
[384495708,1757443849018,-480.0,0.00014794,2]
[384495710,1757443849028,-247.63214371,0.00014794,2]
[384495712,1757443849044,-1002.54785629,0.00014794,2]
[384495714,1757443849053,-480.0,0.00014794,2]
[384495716,1757443849064,-553.77,0.00014794,2]
[384495718,1757443849073,-546.45,0.00014794,2]
[384495720,1757443849083,-761.81,0.00014794,2]
[384495722,1757443849092,-480.0,0.00014794,2]
[384495724,1757443849102,-784.25,0.00014794,2]
[384495726,1757443849111,-807.04,0.00014794,2]
[384495728,1757443849121,-554.2,0.00014794,2]
[384495730,1757443849131,-433.93214371,0.00014794,2]
[384495758,1757443849391,-46.06785629,0.00014794,2]
[384495760,1757443849401,-1959.84,0.00014794,2]
[384495762,1757443849410,-21.30747371,0.00014794,2]
[384495765,1757443849422,-458.69252629,0.00014794,2]
[384495767,1757443849432,-105.60097366,0.00014794,2]
[384495769,1757443849443,-322.20672283,0.00014794,2]
[384495772,1757443849463,-52.19230351,0.00014794,2]
[384495774,1757443849473,-480.0,0.00014794,2]
[384495776,1757443849482,-533.0,0.00014794,2]
[384495778,1757443849492,-650.96,0.00014794,2]
[384495780,1757443849502,-480.0,0.00014794,2]
[384495782,1757443849511,-480.0,0.00014794,2]
[384495784,1757443849520,-557.28,0.00014794,2]
[384495786,1757443849529,-676.39,0.00014794,2]
[384495787,1757443849539,-480.0,0.00014794,2]
[384495790,1757443849549,-480.0,0.00014794,2]
[384495791,1757443849558,-677.0,0.00014794,2]
[384495793,1757443849567,-480.0,0.00014794,2]
[384495795,1757443849577,-480.0,0.00014794,2]
[384495797,1757443849585,-923.74,0.00014794,2]
[384495799,1757443849595,-480.0,0.00014794,2]
[384495801,1757443849604,-885.52,0.00014794,2]
[384495803,1757443849613,-3603.85,0.00014794,2]
[384495805,1757443849622,-538.06,0.00014794,2]
[384495807,1757443849631,-480.0,0.00014794,2]
[384495809,1757443849641,-795.7,0.00014794,2]
[384495811,1757443849650,-480.0,0.00014794,2]
[384495813,1757443849659,-480.0,0.00014794,2]
[384495815,1757443849668,-480.0,0.00014794,2]
[384495817,1757443849678,-480.0,0.00014794,2]
[384495819,1757443849687,-480.0,0.00014794,2]
[384495821,1757443849697,-480.0,0.00014794,2]
[384495823,1757443849706,-657.66,0.00014794,2]
[384495825,1757443849716,-480.0,0.00014794,2]
[384495827,1757443849725,-1874.63,0.00014794,2]
[384495829,1757443849734,-23175.95552956,0.00014794,2]
[384496103,1757444726995,-203.90513434,0.00013287,2]
[384496104,1757444727025,-294.22353576,0.00013597,2]
[384496105,1757444727054,-155.26899005,0.00013598,2]
[384496106,1757444727084,-226.05700152,0.0001369,2]
[384496107,1757444727116,-1000.0,0.0001369,2]
[384496108,1757444727144,-1000.0,0.0001369,2]
[384496109,1757444727173,-1000.0,0.0001369,2]
[384496110,1757444727202,-1000.0,0.0001369,2]
[384496153,1757445032757,-430.39982353,0.00013417,2]
[384496154,1757445032767,-257.44559379,0.00013597,2]
[384496156,1757445032776,-458.37061399,0.00013689,2]
[384496163,1757445032865,-741.62938601,0.00013689,2]
[384496165,1757445032875,-300.0,0.00013689,2]
[384496167,1757445032884,-1200.0,0.00013689,2]
[384496168,1757445032894,-1000.0,0.0001369,2]
[384496170,1757445032905,-1000.0,0.0001369,2]
[384496172,1757445032914,-1000.0,0.0001369,2]
[384496173,1757445032924,-383.37320078,0.0001369,2]
[384496175,1757445032934,-151.0,0.0001369,2]
[384496177,1757445032946,-151.0,0.0001369,2]
[384496179,1757445032956,-263.19247631,0.0001369,2]
[384496182,1757445032965,-500.0,0.00013697,2]
[384496184,1757445032975,-500.0,0.00013697,2]
[384496185,1757445032985,-160.98965334,0.00013697,2]
[384496187,1757445032994,-500.0,0.00013697,2]
[384496189,1757445033003,-500.0,0.00013697,2]
[384496190,1757445033013,-500.0,0.00013697,2]
[384496192,1757445033022,-500.0,0.00013697,2]
[384496194,1757445033032,-500.0,0.00013697,2]
[384496195,1757445033042,-650.0,0.00013697,2]
[384496197,1757445033051,-500.0,0.00013697,2]
[384496198,1757445033061,-433.81714312,0.00013697,2]
[384496200,1757445033071,-500.0,0.00013697,2]
[384496201,1757445033080,-500.0,0.00013697,2]
[384496203,1757445033090,-500.0,0.00013697,2]
[384496205,1757445033099,-500.0,0.00013697,2]
[384496207,1757445033110,-500.0,0.00013697,2]
[384496209,1757445033120,-500.0,0.00013697,2]
[384496211,1757445033130,-600.0,0.00013697,2]
[384496213,1757445033140,-500.0,0.00013697,2]
[384496215,1757445033151,-500.0,0.00013697,2]
[384496217,1757445033164,-500.0,0.00013697,2]
[384496219,1757445033174,-485.94579626,0.00013697,2]
[384496220,1757445033184,-500.0,0.00013697,2]
[384496221,1757445033195,-500.0,0.00013697,2]
[384496222,1757445033206,-500.0,0.00013697,2]
[384496223,1757445033217,-500.0,0.00013697,2]
[384496224,1757445033227,-500.0,0.00013697,2]
[384496225,1757445033237,-500.0,0.00013697,2]
[384496226,1757445033247,-500.0,0.00013697,2]
[384496227,1757445033256,-599.56295581,0.00013697,2]
[384496228,1757445033266,-500.0,0.00013697,2]
[384496229,1757445033276,-500.0,0.00013697,2]
[384496230,1757445033285,-500.0,0.00013697,2]
[384496231,1757445033294,-500.0,0.00013697,2]
[384496232,1757445033304,-500.0,0.00013697,2]
[384496233,1757445033315,-500.0,0.00013697,2]
[384496236,1757445033531,-500.0,0.00013697,2]
[384496238,1757445033541,-500.0,0.00013697,2]
[384496240,1757445033551,-500.0,0.00013697,2]
[384496242,1757445033561,-500.0,0.00013697,2]
[384496244,1757445033571,-500.0,0.00013697,2]
[384496246,1757445033580,-500.0,0.00013697,2]
[384496248,1757445033591,-199.99999999,0.00013697,2]
[384496250,1757445033600,-500.0,0.00013697,2]
[384496252,1757445033610,-500.0,0.00013697,2]
[384496254,1757445033620,-500.0,0.00013697,2]
[384496256,1757445033629,-500.0,0.00013697,2]
[384496258,1757445033639,-500.0,0.00013697,2]
[384496260,1757445033649,-600.0,0.00013697,2]
[384496262,1757445033659,-500.0,0.00013697,2]
[384496264,1757445033668,-500.0,0.00013697,2]
[384496266,1757445033678,-373.36982977,0.00013697,2]
[384496268,1757445033687,-500.0,0.00013697,2]
[384496270,1757445033697,-500.0,0.00013697,2]
[384496272,1757445033706,-500.0,0.00013697,2]
[384496274,1757445033716,-500.0,0.00013697,2]
[384496276,1757445033726,-500.0,0.00013697,2]
[384496278,1757445033735,-500.0,0.00013697,2]
[384496280,1757445033745,-500.0,0.00013697,2]
[384496282,1757445033755,-500.0,0.00013697,2]
[384496284,1757445033765,-500.0,0.00013697,2]
[384496286,1757445033775,-500.0,0.00013697,2]
[384496288,1757445033784,-500.0,0.00013697,2]
[384496290,1757445033794,-500.0,0.00013697,2]
[384496292,1757445033803,-500.0,0.00013697,2]
[384496294,1757445033813,-500.0,0.00013697,2]
[384496296,1757445033822,-500.0,0.00013697,2]
[384496298,1757445033832,-500.0,0.00013697,2]
[384496300,1757445033842,-500.0,0.00013697,2]
[384496302,1757445033851,-500.0,0.00013697,2]
[384496304,1757445033861,-500.0,0.00013697,2]
[384496306,1757445033870,-500.0,0.00013697,2]
[384496308,1757445033879,-500.0,0.00013697,2]
[384496310,1757445033889,-500.0,0.00013697,2]
[384496312,1757445033898,-500.0,0.00013697,2]
[384496314,1757445033908,-323.5669905,0.00013697,2]
[384496316,1757445033918,-500.0,0.00013697,2]
[384496317,1757445033928,-500.0,0.00013697,2]
[384496319,1757445033938,-500.0,0.00013697,2]
[384496321,1757445033948,-500.0,0.00013697,2]
[384496322,1757445033959,-500.0,0.00013697,2]
[384496323,1757445033968,-500.0,0.00013697,2]
[384496324,1757445033978,-500.0,0.00013697,2]
[384496325,1757445033988,-500.0,0.00013697,2]
[384496327,1757445033998,-609.95629558,0.00013697,2]
[384496329,1757445034007,-500.0,0.00013697,2]
[384496331,1757445034016,-500.0,0.00013697,2]
[384496333,1757445034026,-500.0,0.00013697,2]
[384496335,1757445034035,-500.0,0.00013697,2]
[384496337,1757445034045,-500.0,0.00013697,2]
[384496339,1757445034054,-500.0,0.00013697,2]
[384496341,1757445034064,-500.0,0.00013697,2]
[384496343,1757445034074,-500.0,0.00013697,2]
[384496345,1757445034085,-515.14565245,0.00013697,2]
[384496347,1757445034094,-239.88106416,0.00013697,2]
[384496349,1757445034104,-500.0,0.00013697,2]
[384496351,1757445034113,-500.0,0.00013697,2]
[384496353,1757445034124,-281.60977534,0.00013697,2]
[384496355,1757445034133,-500.0,0.00013697,2]
[384496357,1757445034143,-500.0,0.00013697,2]
[384496359,1757445034153,-500.0,0.00013697,2]
[384496361,1757445034162,-491.76581474,0.00013697,2]
[384496363,1757445034179,-500.0,0.00013697,2]
[384496365,1757445034189,-500.0,0.00013697,2]
[384496367,1757445034198,-500.0,0.00013697,2]
[384496369,1757445034208,-500.0,0.00013697,2]
[384496371,1757445034217,-500.0,0.00013697,2]
[384496373,1757445034227,-500.0,0.00013697,2]
[384496375,1757445034236,-500.0,0.00013697,2]
[384496377,1757445034245,-500.0,0.00013697,2]
[384496379,1757445034254,-500.0,0.00013697,2]
[384496381,1757445034263,-500.0,0.00013697,2]
[384496383,1757445034272,-500.0,0.00013697,2]
[384496385,1757445034281,-500.0,0.00013697,2]
[384496387,1757445034291,-500.0,0.00013697,2]
[384496389,1757445034300,-500.0,0.00013697,2]
[384496391,1757445034309,-500.0,0.00013697,2]
[384496393,1757445034318,-500.0,0.00013697,2]
[384496395,1757445034327,-500.0,0.00013697,2]
[384496397,1757445034336,-500.0,0.00013697,2]
[384496399,1757445034345,-500.0,0.00013697,2]
[384496401,1757445034354,-500.0,0.00013697,2]
[384496403,1757445034363,-500.0,0.00013697,2]
[384496405,1757445034373,-500.0,0.00013697,2]
[384496407,1757445034382,-500.0,0.00013697,2]
[384496408,1757445034391,-230.17124645,0.00013697,2]
[384496410,1757445034400,-152.64006082,0.00013697,2]
[384496412,1757445034408,-500.0,0.00013697,2]
[384496414,1757445034417,-500.0,0.00013697,2]
[384496416,1757445034426,-500.0,0.00013697,2]
[384496418,1757445034435,-500.0,0.00013697,2]
[384496420,1757445034445,-500.0,0.00013697,2]
[384496422,1757445034454,-550.0,0.00013697,2]
[384496424,1757445034464,-500.0,0.00013697,2]
[384496426,1757445034473,-500.0,0.00013697,2]
[384496428,1757445034483,-500.0,0.00013697,2]
[384496430,1757445034492,-480.0,0.00013698,2]
[384496432,1757445034501,-480.0,0.00013698,2]
[384496434,1757445034510,-480.0,0.00013698,2]
[384496436,1757445034519,-480.0,0.00013698,2]
[384496438,1757445034530,-480.0,0.00013698,2]
[384496440,1757445034540,-480.0,0.00013698,2]
[384496442,1757445034549,-480.0,0.00013698,2]
[384496444,1757445034558,-480.0,0.00013698,2]
[384496446,1757445034567,-480.0,0.00013698,2]
[384496448,1757445034576,-513.51,0.00013698,2]
[384496450,1757445034586,-480.0,0.00013698,2]
[384496452,1757445034595,-480.0,0.00013698,2]
[384496454,1757445034605,-480.0,0.00013698,2]
[384496456,1757445034614,-480.0,0.00013698,2]
[384496458,1757445034623,-480.0,0.00013698,2]
[384496460,1757445034633,-775.93,0.00013698,2]
[384496462,1757445034643,-480.0,0.00013698,2]
[384496465,1757445034653,-506.78,0.00013698,2]
[384496467,1757445034663,-610.31,0.00013698,2]
[384496469,1757445034672,-480.0,0.00013698,2]
[384496471,1757445034681,-940.36,0.00013698,2]
[384496473,1757445034690,-480.0,0.00013698,2]
[384496475,1757445034700,-480.0,0.00013698,2]
[384496476,1757445034709,-480.0,0.00013698,2]
[384496478,1757445034718,-224.11936692,0.00013698,2]
[384496481,1757445034732,-258.32825493,0.00013698,2]
[384496483,1757445034742,-471.74292092,0.00013698,2]
[384496886,1757445038763,-8.25707908,0.00013698,2]
[384496888,1757445038773,-480.0,0.00013698,2]
[384496890,1757445038782,-480.0,0.00013698,2]
[384496892,1757445038792,-1119.68,0.00013698,2]
[384496894,1757445038801,-209.3741378,0.00013698,2]
[384496897,1757445038820,-328.64213783,0.00013698,2]
[384496899,1757445038829,-501.82,0.00013698,2]
[384496901,1757445038839,-480.0,0.00013698,2]
[384496903,1757445038849,-691.07,0.00013698,2]
[384496905,1757445038858,-704.77,0.00013698,2]
[384496907,1757445038868,-480.0,0.00013698,2]
[384496909,1757445038878,-698.9,0.00013698,2]
[384496911,1757445038888,-480.0,0.00013698,2]
[384496913,1757445038898,-480.0,0.00013698,2]
[384496915,1757445038907,-584.86,0.00013698,2]
[384496917,1757445038917,-498.74,0.00013698,2]
[384496919,1757445038926,-480.0,0.00013698,2]
[384496921,1757445038936,-480.0,0.00013698,2]
[384496923,1757445038947,-515.71083625,0.00013698,2]
[384496925,1757445038956,-480.0,0.00013698,2]
[384496927,1757445038967,-480.0,0.00013698,2]
[384496929,1757445038976,-498.37,0.00013698,2]
[384496931,1757445038986,-480.0,0.00013698,2]
[384496934,1757445038996,-480.0,0.00013698,2]
[384496936,1757445039006,-480.0,0.00013698,2]
[384496938,1757445039015,-480.0,0.00013698,2]
[384496940,1757445039025,-480.0,0.00013698,2]
[384496942,1757445039034,-480.0,0.00013698,2]
[384496944,1757445039043,-480.0,0.00013698,2]
[384496946,1757445039052,-480.0,0.00013698,2]